[Event "Early Titled Tuesday Blitz | February 8 2022"]
[White "Brunner, Nicolas"]
[Black "Yushko, Olga"]
[WhiteFideId "620246"]
[BlackFideId "14114500"]
[WhiteElo "2372"]
[BlackElo "2028"]
[Result "1-0"]
[Round "07"]
[TimeControl "180+1"]
[Date "2022.02.08"]
[WhiteClock "0:02:27"]
[BlackClock "0:02:54"]

1. d4 {[%clk 0:03:00]}  e6 {[%clk 0:02:59]} 2. e4 {[%clk 0:03:00]}  d5 {[%clk 0:02:59]} 3. Nc3 {[%clk 0:02:59]}  Nf6 {[%clk 0:02:59]} 4. e5 {[%clk 0:02:56]}  Nfd7 {[%clk 0:03:00]} 5. f4 {[%clk 0:02:52]}  c5 {[%clk 0:03:00]} 6. Nf3 {[%clk 0:02:51]}  Nc6 {[%clk 0:03:01]} 7. Be3 {[%clk 0:02:50]}  Qb6 {[%clk 0:03:00]} 8. Na4 {[%clk 0:02:49]}  Qa5+ {[%clk 0:03:00]} 9. c3 {[%clk 0:02:49]}  cxd4 {[%clk 0:03:00]} 10. b4 {[%clk 0:02:48]}  Qd8 {[%clk 0:03:00]} 11. Nxd4 {[%clk 0:02:47]}  Nxb4 {[%clk 0:02:57]} 12. cxb4 {[%clk 0:02:45]}  Bxb4+ {[%clk 0:02:58]} 13. Kf2 {[%clk 0:02:39]}  O-O {[%clk 0:02:57]} 14. Bd3 {[%clk 0:02:34]}  a6 {[%clk 0:02:56]} 15. Bxh7+ {[%clk 0:02:30]}  Kh8 {[%clk 0:02:54]} 16. Qh5 {[%clk 0:02:27]} 1-0


[Site "https://www.chess.com"]

[Event "Early Titled Tuesday Blitz | February 8 2022"]
[White "Camacho Collados, Jose"]
[Black "Karabalis, Harilos"]
[WhiteFideId "2265427"]
[BlackFideId "4621808"]
[WhiteElo "2351"]
[BlackElo "2168"]
[Result "0-1"]
[Round "07"]
[TimeControl "180+1"]
[Date "2022.02.08"]
[WhiteClock "0:00:06"]
[BlackClock "0:00:08"]

1. e4 {[%clk 0:03:00]}  e6 {[%clk 0:02:59]} 2. d3 {[%clk 0:03:00]}  d5 {[%clk 0:03:00]} 3. Nd2 {[%clk 0:03:01]}  b6 {[%clk 0:02:59]} 4. exd5 {[%clk 0:03:00]}  Qxd5 {[%clk 0:02:57]} 5. c4 {[%clk 0:02:57]}  Qd8 {[%clk 0:02:56]} 6. Ngf3 {[%clk 0:02:54]}  Bb7 {[%clk 0:02:56]} 7. d4 {[%clk 0:02:53]}  Nf6 {[%clk 0:02:56]} 8. Bd3 {[%clk 0:02:53]}  Be7 {[%clk 0:02:53]} 9. O-O {[%clk 0:02:53]}  O-O {[%clk 0:02:53]} 10. Re1 {[%clk 0:02:53]}  Nbd7 {[%clk 0:02:53]} 11. b3 {[%clk 0:02:48]}  c5 {[%clk 0:02:52]} 12. Bb2 {[%clk 0:02:45]}  Re8 {[%clk 0:02:50]} 13. Qc2 {[%clk 0:02:30]}  Nf8 {[%clk 0:02:47]} 14. Rad1 {[%clk 0:02:28]}  Qc7 {[%clk 0:02:44]} 15. Ne4 {[%clk 0:02:06]}  Nxe4 {[%clk 0:02:42]} 16. Bxe4 {[%clk 0:02:07]}  Bxe4 {[%clk 0:02:41]} 17. Qxe4 {[%clk 0:02:08]}  cxd4 {[%clk 0:02:36]} 18. Nxd4 {[%clk 0:02:08]}  Rad8 {[%clk 0:02:32]} 19. Nc6 {[%clk 0:02:05]}  Rxd1 {[%clk 0:02:31]} 20. Nxe7+ {[%clk 0:01:52]}  Rxe7 {[%clk 0:02:28]} 21. Rxd1 {[%clk 0:01:53]}  Rd7 {[%clk 0:02:26]} 22. Rd4 {[%clk 0:01:30]}  Rxd4 {[%clk 0:02:22]} 23. Qxd4 {[%clk 0:01:31]}  f6 {[%clk 0:02:22]} 24. h4 {[%clk 0:01:26]}  Kf7 {[%clk 0:02:19]} 25. h5 {[%clk 0:01:24]}  Nd7 {[%clk 0:02:18]} 26. Qe4 {[%clk 0:01:19]}  g6 {[%clk 0:02:07]} 27. hxg6+ {[%clk 0:01:17]}  hxg6 {[%clk 0:02:07]} 28. Qh4 {[%clk 0:01:18]}  Kg7 {[%clk 0:02:04]} 29. Bc1 {[%clk 0:01:08]}  g5 {[%clk 0:01:59]} 30. Qe4 {[%clk 0:01:05]}  Nc5 {[%clk 0:01:55]} 31. Qc2 {[%clk 0:01:00]}  Qe5 {[%clk 0:01:51]} 32. b4 {[%clk 0:00:48]}  Qe1+ {[%clk 0:01:31]} 33. Kh2 {[%clk 0:00:48]}  Qe5+ {[%clk 0:01:30]} 34. f4 {[%clk 0:00:46]}  gxf4 {[%clk 0:01:24]} 35. bxc5 {[%clk 0:00:36]}  f3+ {[%clk 0:01:24]} 36. Kh3 {[%clk 0:00:27]}  Qh5+ {[%clk 0:00:33]} 37. Kg3 {[%clk 0:00:26]}  fxg2 {[%clk 0:00:33]} 38. Qxg2 {[%clk 0:00:21]}  Qxc5 {[%clk 0:00:29]} 39. Kh2+ {[%clk 0:00:18]}  Kf7 {[%clk 0:00:28]} 40. Qb7+ {[%clk 0:00:17]}  Kg6 {[%clk 0:00:27]} 41. Qe4+ {[%clk 0:00:17]}  Kf7 {[%clk 0:00:26]} 42. Be3 {[%clk 0:00:16]}  Qh5+ {[%clk 0:00:22]} 43. Kg3 {[%clk 0:00:16]}  Qe2 {[%clk 0:00:20]} 44. Qh7+ {[%clk 0:00:12]}  Ke8 {[%clk 0:00:20]} 45. Bh6 {[%clk 0:00:06]}  Qxc4 {[%clk 0:00:12]} 46. Qg8+ {[%clk 0:00:03]}  Kd7 {[%clk 0:00:12]} 47. Qf7+ {[%clk 0:00:03]}  Kc6 {[%clk 0:00:12]} 48. Qxf6 {[%clk 0:00:02]}  Qxa2 {[%clk 0:00:12]} 49. Qc3+ {[%clk 0:00:01]}  Kd5 {[%clk 0:00:11]} 50. Bf4 {[%clk 0:00:02]}  Qe2 {[%clk 0:00:06]} 51. Qb3+ {[%clk 0:00:01]}  Qc4 {[%clk 0:00:06]} 52. Qd1+ {[%clk 0:00:01]}  Ke4 {[%clk 0:00:05]} 53. Qe1+ {[%clk 0:00:01]}  Kd3 {[%clk 0:00:05]} 54. Qd2+ {[%clk 0:00:02]}  Ke4 {[%clk 0:00:05]} 55. Qe1+ {[%clk 0:00:03]}  Kf5 {[%clk 0:00:03]} 56. Qe5+ {[%clk 0:00:03]}  Kg6 {[%clk 0:00:04]} 57. Qg5+ {[%clk 0:00:04]}  Kf7 {[%clk 0:00:04]} 58. Qh5+ {[%clk 0:00:03]}  Ke7 {[%clk 0:00:04]} 59. Qh7+ {[%clk 0:00:03]}  Kd8 {[%clk 0:00:03]} 60. Bg5+ {[%clk 0:00:01]}  Kc8 {[%clk 0:00:03]} 61. Qg8+ {[%clk 0:00:02]}  Kb7 {[%clk 0:00:02]} 62. Qf7+ {[%clk 0:00:03]}  Qc7+ {[%clk 0:00:02]} 63. Kg4 {[%clk 0:00:01]}  Qxf7 {[%clk 0:00:02]} 64. Be3 {[%clk 0:00:01]}  Qf5+ {[%clk 0:00:03]} 65. Kg3 {[%clk 0:00:02]}  b5 {[%clk 0:00:03]} 66. Bf4 {[%clk 0:00:03]}  b4 {[%clk 0:00:04]} 67. Kf3 {[%clk 0:00:03]}  b3 {[%clk 0:00:05]} 68. Ke3 {[%clk 0:00:04]}  b2 {[%clk 0:00:05]} 69. Be5 {[%clk 0:00:05]}  b1=Q {[%clk 0:00:06]} 70. Kd4 {[%clk 0:00:05]}  Qbd3+ {[%clk 0:00:06]} 71. Kc5 {[%clk 0:00:06]}  Qxe5+ {[%clk 0:00:07]} 72. Kb4 {[%clk 0:00:06]}  Qeb5# {[%clk 0:00:08]} 0-1


[Site "https://www.chess.com"]

[Event "Early Titled Tuesday Blitz | February 8 2022"]
[White "Carlsson, Ludvig"]
[Black "Araujo Filho, Luiz Antonio Coel"]
[WhiteFideId "1727010"]
[BlackFideId "2130661"]
[WhiteElo "2178"]
[BlackElo "2242"]
[Result "0-1"]
[Round "07"]
[TimeControl "180+1"]
[Date "2022.02.08"]
[WhiteClock "0:01:58"]
[BlackClock "0:00:12"]

1. e4 {[%clk 0:03:00]}  c6 {[%clk 0:02:42]} 2. d4 {[%clk 0:02:57]}  d5 {[%clk 0:02:34]} 3. exd5 {[%clk 0:02:58]}  cxd5 {[%clk 0:02:33]} 4. Bd3 {[%clk 0:02:59]}  Nf6 {[%clk 0:02:25]} 5. h3 {[%clk 0:02:59]}  Nc6 {[%clk 0:02:25]} 6. Nf3 {[%clk 0:02:59]}  e6 {[%clk 0:02:25]} 7. c3 {[%clk 0:02:56]}  Be7 {[%clk 0:02:25]} 8. O-O {[%clk 0:02:56]}  O-O {[%clk 0:02:25]} 9. Bf4 {[%clk 0:02:56]}  a6 {[%clk 0:02:11]} 10. a4 {[%clk 0:02:55]}  Bd7 {[%clk 0:02:10]} 11. Nbd2 {[%clk 0:02:51]}  Be8 {[%clk 0:02:10]} 12. Re1 {[%clk 0:02:51]}  Rc8 {[%clk 0:02:04]} 13. Bh2 {[%clk 0:02:50]}  Nd7 {[%clk 0:01:54]} 14. Qe2 {[%clk 0:02:47]}  g6 {[%clk 0:01:52]} 15. Bf4 {[%clk 0:02:44]}  Bf6 {[%clk 0:01:28]} 16. Bh6 {[%clk 0:02:43]}  Bg7 {[%clk 0:01:28]} 17. Qe3 {[%clk 0:02:41]}  Nf6 {[%clk 0:01:12]} 18. Qg5 {[%clk 0:02:39]}  Qc7 {[%clk 0:01:02]} 19. Bxg7 {[%clk 0:02:34]}  Kxg7 {[%clk 0:01:01]} 20. Ne5 {[%clk 0:02:33]}  Nxe5 {[%clk 0:00:55]} 21. dxe5 {[%clk 0:02:31]}  Nd7 {[%clk 0:00:54]} 22. Nf3 {[%clk 0:02:31]}  Qd8 {[%clk 0:00:49]} 23. Qxd8 {[%clk 0:02:30]}  Rxd8 {[%clk 0:00:48]} 24. a5 {[%clk 0:02:28]}  Nc5 {[%clk 0:00:44]} 25. Bc2 {[%clk 0:02:28]}  Bb5 {[%clk 0:00:38]} 26. Nd4 {[%clk 0:02:28]}  Bd3 {[%clk 0:00:35]} 27. Bd1 {[%clk 0:02:11]}  g5 {[%clk 0:00:35]} 28. Bg4 {[%clk 0:02:05]}  Rfe8 {[%clk 0:00:31]} 29. Red1 {[%clk 0:02:02]}  Bg6 {[%clk 0:00:31]} 30. Be2 {[%clk 0:02:01]}  Rc8 {[%clk 0:00:30]} 31. f3 {[%clk 0:02:01]}  h5 {[%clk 0:00:28]} 32. Kf2 {[%clk 0:02:00]}  Nd7 {[%clk 0:00:28]} 33. f4 {[%clk 0:01:55]}  gxf4 {[%clk 0:00:28]} 34. Nf3 {[%clk 0:01:55]}  Nc5 {[%clk 0:00:27]} 35. Re1 {[%clk 0:01:56]}  Ne4+ {[%clk 0:00:27]} 36. Kg1 {[%clk 0:01:56]}  Rc7 {[%clk 0:00:20]} 37. Nd4 {[%clk 0:01:56]}  Rec8 {[%clk 0:00:19]} 38. Rf1 {[%clk 0:01:55]}  Ng3 {[%clk 0:00:17]} 39. Rxf4 {[%clk 0:01:55]}  Nxe2+ {[%clk 0:00:17]} 40. Nxe2 {[%clk 0:01:55]}  Rc4 {[%clk 0:00:17]} 41. Rxc4 {[%clk 0:01:56]}  Rxc4 {[%clk 0:00:17]} 42. Nd4 {[%clk 0:01:57]}  Kf8 {[%clk 0:00:15]} 43. Kf2 {[%clk 0:01:57]}  Ke7 {[%clk 0:00:16]} 44. Ke3 {[%clk 0:01:57]}  Kd7 {[%clk 0:00:16]} 45. g4 {[%clk 0:01:56]}  hxg4 {[%clk 0:00:16]} 46. hxg4 {[%clk 0:01:57]}  Ke7 {[%clk 0:00:16]} 47. Kf4 {[%clk 0:01:56]}  Kd7 {[%clk 0:00:14]} 48. Ra3 {[%clk 0:01:56]}  Kc7 {[%clk 0:00:13]} 49. Rb3 {[%clk 0:01:56]}  Ra4 {[%clk 0:00:13]} 50. Ra3 {[%clk 0:01:52]}  Rxa3 {[%clk 0:00:12]} 51. bxa3 {[%clk 0:01:53]}  b6 {[%clk 0:00:12]} 52. axb6+ {[%clk 0:01:54]}  Kxb6 {[%clk 0:00:12]} 53. Kg5 {[%clk 0:01:53]}  Be4 {[%clk 0:00:06]} 54. Kf6 {[%clk 0:01:53]}  Kc5 {[%clk 0:00:06]} 55. g5 {[%clk 0:01:52]}  Kc4 {[%clk 0:00:06]} 56. Nxe6 {[%clk 0:01:52]}  fxe6 {[%clk 0:00:06]} 57. Kxe6 {[%clk 0:01:52]}  Kxc3 {[%clk 0:00:06]} 58. Kf6 {[%clk 0:01:52]}  d4 {[%clk 0:00:06]} 59. e6 {[%clk 0:01:52]}  d3 {[%clk 0:00:06]} 60. e7 {[%clk 0:01:53]}  Bc6 {[%clk 0:00:07]} 61. g6 {[%clk 0:01:53]}  d2 {[%clk 0:00:07]} 62. g7 {[%clk 0:01:54]}  d1=Q {[%clk 0:00:07]} 63. g8=Q {[%clk 0:01:54]}  Qf3+ {[%clk 0:00:07]} 64. Ke6 {[%clk 0:01:54]}  Qd5+ {[%clk 0:00:07]} 65. Kf6 {[%clk 0:01:54]}  Qxg8 {[%clk 0:00:07]} 66. e8=Q {[%clk 0:01:54]}  Qxe8 {[%clk 0:00:08]} 67. a4 {[%clk 0:01:54]}  Qd7 {[%clk 0:00:07]} 68. a5 {[%clk 0:01:54]}  Kb4 {[%clk 0:00:08]} 69. Ke5 {[%clk 0:01:54]}  Kxa5 {[%clk 0:00:09]} 70. Kf4 {[%clk 0:01:54]}  Kb4 {[%clk 0:00:10]} 71. Ke3 {[%clk 0:01:55]}  Qd5 {[%clk 0:00:10]} 72. Kf2 {[%clk 0:01:55]}  a5 {[%clk 0:00:10]} 73. Ke1 {[%clk 0:01:56]}  a4 {[%clk 0:00:11]} 74. Ke2 {[%clk 0:01:56]}  a3 {[%clk 0:00:12]} 75. Ke3 {[%clk 0:01:57]}  a2 {[%clk 0:00:12]} 76. Kf4 {[%clk 0:01:58]} 0-1


[Site "https://www.chess.com"]

[Event "Early Titled Tuesday Blitz | February 8 2022"]
[White "Chernomordik, Pavel"]
[Black "Murzin, Volodar"]
[WhiteFideId "2804530"]
[BlackFideId "44155573"]
[WhiteElo "2249"]
[BlackElo "2585"]
[Result "0-1"]
[Round "07"]
[TimeControl "180+1"]
[Date "2022.02.08"]
[WhiteClock "0:01:27"]
[BlackClock "0:01:13"]

1. e4 {[%clk 0:03:00]}  c6 {[%clk 0:02:59]} 2. Nc3 {[%clk 0:03:00]}  d5 {[%clk 0:03:00]} 3. Qf3 {[%clk 0:03:00]}  Nf6 {[%clk 0:02:54]} 4. d3 {[%clk 0:02:59]}  e6 {[%clk 0:02:51]} 5. Qg3 {[%clk 0:02:55]}  d4 {[%clk 0:02:19]} 6. Nb1 {[%clk 0:02:51]}  Bb4+ {[%clk 0:02:18]} 7. Bd2 {[%clk 0:02:44]}  Bxd2+ {[%clk 0:02:12]} 8. Nxd2 {[%clk 0:02:43]}  O-O {[%clk 0:02:13]} 9. O-O-O {[%clk 0:02:41]}  c5 {[%clk 0:02:10]} 10. f4 {[%clk 0:02:39]}  Nc6 {[%clk 0:02:10]} 11. Ngf3 {[%clk 0:02:33]}  Nh5 {[%clk 0:02:02]} 12. Qg4 {[%clk 0:02:33]}  g6 {[%clk 0:02:02]} 13. e5 {[%clk 0:02:29]}  f5 {[%clk 0:02:00]} 14. Qg5 {[%clk 0:02:21]}  Qxg5 {[%clk 0:01:57]} 15. fxg5 {[%clk 0:02:21]}  Nf4 {[%clk 0:01:56]} 16. Nc4 {[%clk 0:02:10]}  Bd7 {[%clk 0:01:53]} 17. a4 {[%clk 0:02:01]}  Nd5 {[%clk 0:01:51]} 18. Kd2 {[%clk 0:01:56]}  f4 {[%clk 0:01:34]} 19. h4 {[%clk 0:01:48]}  Ne3 {[%clk 0:01:34]} 20. Ra1 {[%clk 0:01:47]}  Ne7 {[%clk 0:01:24]} 21. Rh2 {[%clk 0:01:38]}  N7f5 {[%clk 0:01:23]} 22. Be2 {[%clk 0:01:37]}  Ng3 {[%clk 0:01:18]} 23. Nd6 {[%clk 0:01:30]}  Bc6 {[%clk 0:01:16]} 24. Ne1 {[%clk 0:01:27]}  Ngf1+ {[%clk 0:01:13]} 0-1


[Site "https://www.chess.com"]

[Event "Early Titled Tuesday Blitz | February 8 2022"]
[White "Cramling Bellon, Anna"]
[Black "Stanisz, Patryk"]
[WhiteFideId "32009232"]
[BlackFideId "1123106"]
[WhiteElo "1905"]
[BlackElo "1876"]
[Result "1-0"]
[Round "07"]
[TimeControl "180+1"]
[Date "2022.02.08"]
[WhiteClock "0:00:10"]
[BlackClock "0:00:22"]

1. d4 {[%clk 0:03:00]}  d5 {[%clk 0:02:59]} 2. c4 {[%clk 0:03:00]}  c6 {[%clk 0:02:59]} 3. Nf3 {[%clk 0:03:00]}  Nf6 {[%clk 0:03:00]} 4. Nc3 {[%clk 0:03:00]}  e6 {[%clk 0:03:00]} 5. e3 {[%clk 0:03:00]}  Nbd7 {[%clk 0:02:59]} 6. Bd3 {[%clk 0:03:00]}  dxc4 {[%clk 0:02:59]} 7. Bxc4 {[%clk 0:03:01]}  b5 {[%clk 0:03:00]} 8. Bd3 {[%clk 0:03:01]}  b4 {[%clk 0:03:01]} 9. Ne4 {[%clk 0:02:58]}  c5 {[%clk 0:03:01]} 10. Nxc5 {[%clk 0:02:54]}  Bxc5 {[%clk 0:03:01]} 11. dxc5 {[%clk 0:02:54]}  Nxc5 {[%clk 0:03:01]} 12. Bb5+ {[%clk 0:02:55]}  Ke7 {[%clk 0:03:02]} 13. Nd4 {[%clk 0:02:50]}  Bb7 {[%clk 0:02:58]} 14. O-O {[%clk 0:02:49]}  a6 {[%clk 0:02:57]} 15. Bc6 {[%clk 0:02:42]}  Qc7 {[%clk 0:02:47]} 16. Qf3 {[%clk 0:02:34]}  Rac8 {[%clk 0:02:25]} 17. Bxb7 {[%clk 0:02:27]}  Qxb7 {[%clk 0:02:25]} 18. Qg3 {[%clk 0:02:22]}  Nce4 {[%clk 0:02:19]} 19. Qh4 {[%clk 0:02:10]}  g5 {[%clk 0:02:09]} 20. Qh6 {[%clk 0:01:58]}  Rhg8 {[%clk 0:02:06]} 21. b3 {[%clk 0:01:57]}  Rg6 {[%clk 0:02:03]} 22. Qh3 {[%clk 0:01:46]}  g4 {[%clk 0:01:33]} 23. Qh4 {[%clk 0:01:36]}  Rc5 {[%clk 0:01:33]} 24. f4 {[%clk 0:00:57]}  gxf3 {[%clk 0:01:04]} 25. Rxf3 {[%clk 0:00:56]}  Rh5 {[%clk 0:00:57]} 26. Qe1 {[%clk 0:00:52]}  Qc7 {[%clk 0:00:41]} 27. Qxb4+ {[%clk 0:00:52]}  Ke8 {[%clk 0:00:37]} 28. h3 {[%clk 0:00:50]}  Rhg5 {[%clk 0:00:31]} 29. Qa4+ {[%clk 0:00:36]}  Kf8 {[%clk 0:00:29]} 30. Ba3+ {[%clk 0:00:17]}  Kg8 {[%clk 0:00:29]} 31. g4 {[%clk 0:00:10]}  Nxg4 {[%clk 0:00:21]} 32. Qe8+ {[%clk 0:00:09]}  Kg7 {[%clk 0:00:22]} 33. Qf8# {[%clk 0:00:10]} 1-0


[Site "https://www.chess.com"]

[Event "Early Titled Tuesday Blitz | February 8 2022"]
[White "De Souza, Cristiano Gomes"]
[Black "Praslov, Andrey"]
[WhiteFideId "2151758"]
[BlackFideId "4147863"]
[WhiteElo "2068"]
[BlackElo "2361"]
[Result "0-1"]
[Round "07"]
[TimeControl "180+1"]
[Date "2022.02.08"]
[WhiteClock "0:00:07"]
[BlackClock "0:00:19"]

1. d4 {[%clk 0:03:00]}  Nf6 {[%clk 0:02:55]} 2. c3 {[%clk 0:02:59]}  d5 {[%clk 0:02:53]} 3. Nf3 {[%clk 0:03:00]}  Bf5 {[%clk 0:02:52]} 4. g3 {[%clk 0:02:59]}  e6 {[%clk 0:02:52]} 5. Bg2 {[%clk 0:02:59]}  c5 {[%clk 0:02:50]} 6. O-O {[%clk 0:03:00]}  Nc6 {[%clk 0:02:50]} 7. Na3 {[%clk 0:02:58]}  cxd4 {[%clk 0:02:44]} 8. Nxd4 {[%clk 0:02:57]}  Bxa3 {[%clk 0:02:38]} 9. Nxc6 {[%clk 0:02:56]}  bxc6 {[%clk 0:02:37]} 10. bxa3 {[%clk 0:02:53]}  O-O {[%clk 0:02:36]} 11. c4 {[%clk 0:02:52]}  Be4 {[%clk 0:02:30]} 12. cxd5 {[%clk 0:02:48]}  Bxg2 {[%clk 0:02:28]} 13. Kxg2 {[%clk 0:02:47]}  cxd5 {[%clk 0:02:21]} 14. Bg5 {[%clk 0:02:41]}  h6 {[%clk 0:02:20]} 15. Bxf6 {[%clk 0:02:40]}  Qxf6 {[%clk 0:02:20]} 16. Rb1 {[%clk 0:02:37]}  Rac8 {[%clk 0:02:17]} 17. Qa4 {[%clk 0:02:33]}  Qe5 {[%clk 0:02:11]} 18. Qxa7 {[%clk 0:02:28]}  Ra8 {[%clk 0:01:58]} 19. Qc5 {[%clk 0:02:25]}  Rfc8 {[%clk 0:01:57]} 20. Qb4 {[%clk 0:02:24]}  Qxe2 {[%clk 0:01:57]} 21. Rb2 {[%clk 0:02:23]}  Qd3 {[%clk 0:01:51]} 22. Rb3 {[%clk 0:02:13]}  Qf5 {[%clk 0:01:50]} 23. Rc3 {[%clk 0:01:58]}  Rxc3 {[%clk 0:01:42]} 24. Qxc3 {[%clk 0:01:57]}  Qe4+ {[%clk 0:01:43]} 25. Kg1 {[%clk 0:01:54]}  d4 {[%clk 0:01:43]} 26. Qb3 {[%clk 0:01:52]}  d3 {[%clk 0:01:40]} 27. Rd1 {[%clk 0:01:51]}  Rd8 {[%clk 0:01:39]} 28. Qc3 {[%clk 0:01:45]}  d2 {[%clk 0:01:34]} 29. Qe3 {[%clk 0:01:36]}  Qc2 {[%clk 0:01:32]} 30. Qb3 {[%clk 0:01:29]}  Qc1 {[%clk 0:01:19]} 31. Kf1 {[%clk 0:01:28]}  g6 {[%clk 0:01:08]} 32. Ke2 {[%clk 0:01:28]}  Rd5 {[%clk 0:01:05]} 33. f4 {[%clk 0:01:18]}  g5 {[%clk 0:00:53]} 34. Qb4 {[%clk 0:00:51]}  gxf4 {[%clk 0:00:47]} 35. gxf4 {[%clk 0:00:48]}  Qc2 {[%clk 0:00:41]} 36. Rxd2 {[%clk 0:00:39]}  Rxd2+ {[%clk 0:00:33]} 37. Qxd2 {[%clk 0:00:39]}  Qe4+ {[%clk 0:00:33]} 38. Kf2 {[%clk 0:00:34]}  Kh7 {[%clk 0:00:30]} 39. Qe3 {[%clk 0:00:28]}  Qc2+ {[%clk 0:00:30]} 40. Qe2 {[%clk 0:00:27]}  Qc5+ {[%clk 0:00:30]} 41. Qe3 {[%clk 0:00:25]}  Qc2+ {[%clk 0:00:30]} 42. Qe2 {[%clk 0:00:19]}  Qc5+ {[%clk 0:00:30]} 43. Qe3 {[%clk 0:00:17]}  Qd5 {[%clk 0:00:30]} 44. Kg3 {[%clk 0:00:16]}  Qxa2 {[%clk 0:00:28]} 45. Qd3+ {[%clk 0:00:16]}  Kg7 {[%clk 0:00:27]} 46. Qc3+ {[%clk 0:00:15]}  Kg8 {[%clk 0:00:26]} 47. Qc8+ {[%clk 0:00:15]}  Kh7 {[%clk 0:00:26]} 48. Qc3 {[%clk 0:00:14]}  Qe2 {[%clk 0:00:22]} 49. Qf3 {[%clk 0:00:12]}  Qe1+ {[%clk 0:00:21]} 50. Kg2 {[%clk 0:00:12]}  Qd2+ {[%clk 0:00:20]} 51. Kh3 {[%clk 0:00:12]}  Qc2 {[%clk 0:00:19]} 52. Kg3 {[%clk 0:00:11]}  Kg6 {[%clk 0:00:14]} 53. h4 {[%clk 0:00:10]}  h5 {[%clk 0:00:14]} 54. Qe3 {[%clk 0:00:08]}  Kh7 {[%clk 0:00:12]} 55. Kf3 {[%clk 0:00:08]}  Qa2 {[%clk 0:00:10]} 56. Qd3+ {[%clk 0:00:07]}  Kg7 {[%clk 0:00:10]} 57. Ke3 {[%clk 0:00:07]}  Kg8 {[%clk 0:00:06]} 58. Qd8+ {[%clk 0:00:05]}  Kh7 {[%clk 0:00:06]} 59. Qg5 {[%clk 0:00:05]}  Qxa3+ {[%clk 0:00:06]} 60. Kf2 {[%clk 0:00:06]}  Qb2+ {[%clk 0:00:05]} 61. Kf1 {[%clk 0:00:05]}  Qb1+ {[%clk 0:00:05]} 62. Kf2 {[%clk 0:00:05]}  Qc2+ {[%clk 0:00:04]} 63. Kg3 {[%clk 0:00:04]}  Qd3+ {[%clk 0:00:04]} 64. Kg2 {[%clk 0:00:04]}  Qg6 {[%clk 0:00:05]} 65. Kf3 {[%clk 0:00:03]}  Qxg5 {[%clk 0:00:05]} 66. fxg5 {[%clk 0:00:04]}  Kg6 {[%clk 0:00:06]} 67. Kf4 {[%clk 0:00:05]}  f6 {[%clk 0:00:05]} 68. gxf6 {[%clk 0:00:05]}  Kxf6 {[%clk 0:00:06]} 69. Ke4 {[%clk 0:00:05]}  e5 {[%clk 0:00:06]} 70. Kf3 {[%clk 0:00:05]}  Ke6 {[%clk 0:00:07]} 71. Ke3 {[%clk 0:00:05]}  Kf5 {[%clk 0:00:08]} 72. Kf3 {[%clk 0:00:05]}  e4+ {[%clk 0:00:08]} 73. Ke3 {[%clk 0:00:06]}  Ke5 {[%clk 0:00:09]} 74. Ke2 {[%clk 0:00:06]}  Kf4 {[%clk 0:00:09]} 75. Kf2 {[%clk 0:00:06]}  Kg4 {[%clk 0:00:10]} 76. Ke3 {[%clk 0:00:06]}  Kxh4 {[%clk 0:00:11]} 77. Kxe4 {[%clk 0:00:06]}  Kg3 {[%clk 0:00:12]} 78. Ke3 {[%clk 0:00:06]}  h4 {[%clk 0:00:13]} 79. Ke2 {[%clk 0:00:07]}  Kg2 {[%clk 0:00:13]} 80. Ke1 {[%clk 0:00:07]}  h3 {[%clk 0:00:14]} 81. Ke2 {[%clk 0:00:07]}  h2 {[%clk 0:00:15]} 82. Ke3 {[%clk 0:00:07]}  h1=Q {[%clk 0:00:16]} 83. Ke4 {[%clk 0:00:07]}  Qh3 {[%clk 0:00:17]} 84. Ke5 {[%clk 0:00:07]}  Qf3 {[%clk 0:00:18]} 85. Ke6 {[%clk 0:00:07]}  Kg3 {[%clk 0:00:19]} 0-1


[Site "https://www.chess.com"]

[Event "Early Titled Tuesday Blitz | February 8 2022"]
[White "Dew, Brian"]
[Black "Pavlidou, Ekaterini"]
[WhiteFideId "6000495"]
[BlackFideId "4213262"]
[WhiteElo "2118"]
[BlackElo "2127"]
[Result "1-0"]
[Round "07"]
[TimeControl "180+1"]
[Date "2022.02.08"]
[WhiteClock "0:00:01"]
[BlackClock "0:00:58"]

1. c4 {[%clk 0:03:00]}  e5 {[%clk 0:02:58]} 2. Nc3 {[%clk 0:02:59]}  Nc6 {[%clk 0:02:58]} 3. g3 {[%clk 0:02:59]}  g6 {[%clk 0:02:58]} 4. Bg2 {[%clk 0:02:59]}  Bg7 {[%clk 0:02:59]} 5. e3 {[%clk 0:02:56]}  d6 {[%clk 0:02:58]} 6. Nge2 {[%clk 0:02:56]}  f5 {[%clk 0:02:58]} 7. O-O {[%clk 0:02:52]}  Nf6 {[%clk 0:02:57]} 8. b3 {[%clk 0:02:51]}  O-O {[%clk 0:02:56]} 9. Bb2 {[%clk 0:02:51]}  e4 {[%clk 0:02:56]} 10. d3 {[%clk 0:02:51]}  Ne5 {[%clk 0:02:52]} 11. dxe4 {[%clk 0:02:49]}  fxe4 {[%clk 0:02:52]} 12. Nxe4 {[%clk 0:02:36]}  Nxe4 {[%clk 0:02:51]} 13. Bxe4 {[%clk 0:02:37]}  Nf3+ {[%clk 0:02:47]} 14. Bxf3 {[%clk 0:02:36]}  Bxb2 {[%clk 0:02:46]} 15. Bd5+ {[%clk 0:02:30]}  Kh8 {[%clk 0:02:42]} 16. Rb1 {[%clk 0:02:27]}  Bh3 {[%clk 0:02:40]} 17. Re1 {[%clk 0:02:15]}  Qf6 {[%clk 0:02:34]} 18. Nf4 {[%clk 0:02:15]}  Bd7 {[%clk 0:02:17]} 19. Bxb7 {[%clk 0:02:05]}  Rab8 {[%clk 0:02:17]} 20. Bg2 {[%clk 0:02:03]}  g5 {[%clk 0:02:15]} 21. Nd3 {[%clk 0:02:02]}  Bc3 {[%clk 0:02:14]} 22. Rf1 {[%clk 0:02:01]}  h5 {[%clk 0:02:05]} 23. Qxh5+ {[%clk 0:02:00]}  Kg7 {[%clk 0:02:05]} 24. Rbc1 {[%clk 0:01:47]}  Rh8 {[%clk 0:02:02]} 25. Qf3 {[%clk 0:01:47]}  Qh6 {[%clk 0:01:56]} 26. h4 {[%clk 0:01:38]}  Bf6 {[%clk 0:01:55]} 27. Kh2 {[%clk 0:00:56]}  gxh4 {[%clk 0:01:50]} 28. g4 {[%clk 0:00:56]}  h3 {[%clk 0:01:39]} 29. Bh1 {[%clk 0:00:45]}  Qg5 {[%clk 0:01:37]} 30. Rg1 {[%clk 0:00:41]}  Rh4 {[%clk 0:01:30]} 31. Rg3 {[%clk 0:00:22]}  Rf8 {[%clk 0:01:24]} 32. Qb7 {[%clk 0:00:13]}  Be5 {[%clk 0:01:22]} 33. f4 {[%clk 0:00:11]}  Qg6 {[%clk 0:01:17]} 34. Nxe5 {[%clk 0:00:08]}  dxe5 {[%clk 0:01:15]} 35. Qxc7 {[%clk 0:00:08]}  exf4 {[%clk 0:01:14]} 36. Qxd7+ {[%clk 0:00:07]}  Rf7 {[%clk 0:01:12]} 37. Qd4+ {[%clk 0:00:07]}  Kh7 {[%clk 0:01:12]} 38. Be4 {[%clk 0:00:06]}  fxg3+ {[%clk 0:01:11]} 39. Kh1 {[%clk 0:00:05]}  g2+ {[%clk 0:01:09]} 40. Kh2 {[%clk 0:00:05]}  Rf1 {[%clk 0:01:08]} 41. Bxg6+ {[%clk 0:00:03]}  Kxg6 {[%clk 0:01:06]} 42. Qd3+ {[%clk 0:00:04]}  Kg5 {[%clk 0:01:05]} 43. Rxf1 {[%clk 0:00:04]}  gxf1=Q {[%clk 0:01:05]} 44. Qxf1 {[%clk 0:00:04]}  Rxg4 {[%clk 0:01:06]} 45. Qxh3 {[%clk 0:00:03]}  Re4 {[%clk 0:01:04]} 46. Qg3+ {[%clk 0:00:03]}  Kf6 {[%clk 0:01:03]} 47. Qf3+ {[%clk 0:00:03]}  Ke5 {[%clk 0:01:03]} 48. Kg3 {[%clk 0:00:02]}  a5 {[%clk 0:01:01]} 49. Qf8 {[%clk 0:00:02]}  Rxe3+ {[%clk 0:01:00]} 50. Kf2 {[%clk 0:00:02]}  Rd3 {[%clk 0:01:00]} 51. Qg7+ {[%clk 0:00:02]}  Kf5 {[%clk 0:00:59]} 52. Qh7+ {[%clk 0:00:01]}  Kf4 {[%clk 0:00:58]} 53. Qxd3 {[%clk 0:00:01]} 1-0


[Site "https://www.chess.com"]